[Event "*** Titled Tuesday Blitz"]
[Site "Chess.com"]
[Date "2021.02.09"]
[Round "7"]
[White "enriquetejedor"]
[Black "Kiborg95"]
[Result "0-1"]
[WhiteElo "2537"]
[BlackElo "2718"]
[TimeControl "180+1"]
[EndTime "11:19:20 PST"]
[Termination "Kiborg95 won by resignation"]

1. c4 {[%clk 0:02:26.5]} 1... d6 {[%clk 0:03:00.9]} 2. g3 {[%clk 0:02:24]} 2...
e5 {[%clk 0:03:01]} 3. Bg2 {[%clk 0:02:24.3]} 3... f5 {[%clk 0:03:01.7]} 4. Nc3
{[%clk 0:02:24.9]} 4... Be7 {[%clk 0:03:01.3]} 5. d4 {[%clk 0:02:23.6]} 5... c6
{[%clk 0:03:00.3]} 6. Nf3 {[%clk 0:02:19.5]} 6... e4 {[%clk 0:03:00.3]} 7. Nd2
{[%clk 0:02:17]} 7... Nf6 {[%clk 0:02:59.9]} 8. O-O {[%clk 0:02:11.1]} 8... d5
{[%clk 0:02:54.6]} 9. e3 {[%clk 0:01:56.4]} 9... Na6 {[%clk 0:02:51.7]} 10. a3
{[%clk 0:01:45.4]} 10... Be6 {[%clk 0:02:51.5]} 11. cxd5 {[%clk 0:01:44.5]}
11... cxd5 {[%clk 0:02:51]} 12. Qa4+ {[%clk 0:01:44.8]} 12... Kf7 {[%clk
0:02:41.7]} 13. Ne2 {[%clk 0:01:42.7]} 13... g5 {[%clk 0:02:40.7]} 14. b4 {[%clk
0:01:40.5]} 14... Nc7 {[%clk 0:02:26.5]} 15. f3 {[%clk 0:01:33.9]} 15... Qd7
{[%clk 0:02:11.4]} 16. Qxd7 {[%clk 0:01:26.6]} 16... Bxd7 {[%clk 0:02:07.8]} 17.
g4 {[%clk 0:00:32.9]} 17... exf3 {[%clk 0:01:58.2]} 18. Nxf3 {[%clk 0:00:33.8]}
18... Nxg4 {[%clk 0:01:38.6]} 19. Ng3 {[%clk 0:00:33.1]} 19... Rhd8 {[%clk
0:01:04.8]} 20. h3 {[%clk 0:00:18.9]} 20... Nh6 {[%clk 0:01:05.1]} 21. Ne5+
{[%clk 0:00:18.8]} 21... Kg8 {[%clk 0:00:59.6]} 22. Nxd7 {[%clk 0:00:14.9]}
22... Rxd7 {[%clk 0:01:00.5]} 23. Nxf5 {[%clk 0:00:15.2]} 23... Nxf5 {[%clk
0:00:58.3]} 24. Rxf5 {[%clk 0:00:16.1]} 24... Rf8 {[%clk 0:00:58.3]} 25. Rxf8+
{[%clk 0:00:13.8]} 25... Kxf8 {[%clk 0:00:57.2]} 26. Bd2 {[%clk 0:00:14.7]}
26... Nb5 {[%clk 0:00:53.6]} 27. a4 {[%clk 0:00:11.4]} 27... Nc7 {[%clk
0:00:53.9]} 28. Rc1 {[%clk 0:00:09.2]} 28... Bd6 {[%clk 0:00:51.7]} 29. b5
{[%clk 0:00:07.8]} 29... Ke7 {[%clk 0:00:48.1]} 30. Rf1 {[%clk 0:00:07.4]} 30...
Ke6 {[%clk 0:00:47.3]} 31. Bf3 {[%clk 0:00:06.5]} 31... Rf7 {[%clk 0:00:42.4]}
32. e4 {[%clk 0:00:06.4]} 32... Bf4 {[%clk 0:00:31.6]} 33. exd5+ {[%clk
0:00:03.6]} 33... Nxd5 {[%clk 0:00:31.3]} 34. Bg4+ {[%clk 0:00:02.5]} 34... Kd6
{[%clk 0:00:31]} 35. Bc1 {[%clk 0:00:03]} 35... Be3+ {[%clk 0:00:28]} 36. Bxe3
{[%clk 0:00:01.7]} 36... Rxf1+ {[%clk 0:00:28.3]} 37. Kxf1 {[%clk 0:00:02.1]}
37... Nxe3+ {[%clk 0:00:28.8]} 38. Ke2 {[%clk 0:00:02.6]} 38... Nc4 {[%clk
0:00:19.3]} 39. Bf3 {[%clk 0:00:02.4]} 39... b6 {[%clk 0:00:18.9]} 40. Be4
{[%clk 0:00:02.6]} 40... h6 {[%clk 0:00:18.4]} 41. Bd3 {[%clk 0:00:02.5]} 41...
Kd5 {[%clk 0:00:17]} 42. Bxc4+ {[%clk 0:00:02]} 42... Kxc4 {[%clk 0:00:17.9]}
43. Ke3 {[%clk 0:00:02.4]} 43... Kd5 {[%clk 0:00:18.4]} 44. Kf3 {[%clk
0:00:02.5]} 44... h5 {[%clk 0:00:18.1]} 45. Ke3 {[%clk 0:00:02.9]} 45... g4
{[%clk 0:00:18.4]} 46. hxg4 {[%clk 0:00:03]} 46... hxg4 {[%clk 0:00:19.3]} 47.
Kf4 {[%clk 0:00:03.4]} 47... Kxd4 {[%clk 0:00:19.9]} 48. Kxg4 {[%clk 0:00:04]}
48... Kc4 {[%clk 0:00:20.5]} 49. a5 {[%clk 0:00:04.5]} 49... Kxb5 {[%clk
0:00:18.1]} 50. axb6 {[%clk 0:00:03.5]} 50... axb6 {[%clk 0:00:19]} 51. Kf3
{[%clk 0:00:04]} 51... Kc4 {[%clk 0:00:19.5]} 52. Ke2 {[%clk 0:00:04.4]} 52...
Kc3 {[%clk 0:00:19.1]} 53. Kd1 {[%clk 0:00:05]} 53... b5 {[%clk 0:00:19.4]} 54.
Kc1 {[%clk 0:00:05.4]} 54... b4 {[%clk 0:00:19.5]} 55. Kb1 {[%clk 0:00:05.8]}
55... Kb3 {[%clk 0:00:19.1]} 56. Ka1 {[%clk 0:00:06.1]} 56... Kc2 {[%clk
0:00:18.2]} 57. Ka2 {[%clk 0:00:03.9]} 57... b3+ {[%clk 0:00:18.8]} 58. Ka1
{[%clk 0:00:04.8]} 0-1

[Event "*** Titled Tuesday Blitz"]
[Site "Chess.com"]
[Date "2021.02.09"]
[Round "7"]
[White "superchess02"]
[Black "Azerichess"]
[Result "0-1"]
[WhiteElo "2788"]
[BlackElo "2977"]
[TimeControl "180+1"]
[EndTime "11:19:22 PST"]
[Termination "Azerichess won by resignation"]

1. d4 {[%clk 0:03:00.9]} 1... f5 {[%clk 0:02:56.6]} 2. g3 {[%clk 0:02:59.2]}
2... Nf6 {[%clk 0:02:56.7]} 3. Bg2 {[%clk 0:03:00.1]} 3... g6 {[%clk 0:02:56.6]}
4. c4 {[%clk 0:02:59.5]} 4... Bg7 {[%clk 0:02:56.8]} 5. Nc3 {[%clk 0:03:00.4]}
5... O-O {[%clk 0:02:57.2]} 6. Nf3 {[%clk 0:03:01.3]} 6... d6 {[%clk 0:02:55.6]}
7. O-O {[%clk 0:03:01.6]} 7... c6 {[%clk 0:02:56]} 8. b4 {[%clk 0:03:01.5]} 8...
Ne4 {[%clk 0:02:51.4]} 9. Qb3 {[%clk 0:02:57.4]} 9... Nxc3 {[%clk 0:02:49.1]}
10. Qxc3 {[%clk 0:02:57.3]} 10... Nd7 {[%clk 0:02:46.9]} 11. Rd1 {[%clk
0:02:56]} 11... Nf6 {[%clk 0:02:45.3]} 12. Qb3 {[%clk 0:02:54.9]} 12... Kh8
{[%clk 0:02:44.5]} 13. c5 {[%clk 0:02:45.2]} 13... Ne4 {[%clk 0:02:42.9]} 14.
Ng5 {[%clk 0:02:43.2]} 14... d5 {[%clk 0:02:41]} 15. Nf3 {[%clk 0:02:31.7]}
15... a5 {[%clk 0:02:39.1]} 16. Bf4 {[%clk 0:01:40.4]} 16... axb4 {[%clk
0:02:10.7]} 17. Qxb4 {[%clk 0:01:37.8]} 17... Qa5 {[%clk 0:02:11.2]} 18. Qxa5
{[%clk 0:01:35.5]} 18... Rxa5 {[%clk 0:02:10.4]} 19. Be5 {[%clk 0:01:30.5]}
19... Nc3 {[%clk 0:02:03.2]} 20. Rd2 {[%clk 0:01:27.8]} 20... Be6 {[%clk
0:02:00.8]} 21. Rc2 {[%clk 0:01:24]} 21... Nb5 {[%clk 0:01:58.6]} 22. e3 {[%clk
0:01:20.1]} 22... Rfa8 {[%clk 0:01:51.9]} 23. Bf1 {[%clk 0:01:19]} 23... Bf6
{[%clk 0:01:40.7]} 24. Rb2 {[%clk 0:01:10.9]} 24... Bd7 {[%clk 0:01:39.6]} 25.
Bxb5 {[%clk 0:01:05.3]} 25... cxb5 {[%clk 0:01:40.5]} 26. Bxf6+ {[%clk
0:00:51.6]} 26... exf6 {[%clk 0:01:38.8]} 27. Ne1 {[%clk 0:00:52.1]} 27... Kg8
{[%clk 0:01:38.7]} 28. Nc2 {[%clk 0:00:51.9]} 28... Kf7 {[%clk 0:01:39]} 29. a3
{[%clk 0:00:41.5]} 29... Bc6 {[%clk 0:01:38.4]} 30. Rb4 {[%clk 0:00:40.3]} 30...
g5 {[%clk 0:01:31.4]} 31. h4 {[%clk 0:00:38.9]} 31... gxh4 {[%clk 0:01:31.1]}
32. gxh4 {[%clk 0:00:39.8]} 32... Rg8+ {[%clk 0:01:30.8]} 33. Kh2 {[%clk
0:00:40]} 33... Rg4 {[%clk 0:01:30]} 34. Kh3 {[%clk 0:00:39.7]} 34... Bd7 {[%clk
0:01:27.5]} 35. f4 {[%clk 0:00:39.3]} 35... Ra8 {[%clk 0:01:26.6]} 36. Ne1
{[%clk 0:00:24.2]} 36... Rag8 {[%clk 0:01:24.4]} 37. Rb2 {[%clk 0:00:20.6]}
37... Rg3+ {[%clk 0:01:22.7]} 38. Kh2 {[%clk 0:00:20.9]} 38... Rxe3 {[%clk
0:01:23.2]} 39. Ng2 {[%clk 0:00:20.5]} 39... Re4 {[%clk 0:01:20.6]} 40. a4
{[%clk 0:00:21.1]} 40... Ra8 {[%clk 0:01:17]} 41. Rb4 {[%clk 0:00:17.7]} 41...
Ke6 {[%clk 0:01:14.4]} 42. Rab1 {[%clk 0:00:16]} 42... Rxa4 {[%clk 0:01:06.5]}
43. Rxa4 {[%clk 0:00:15.8]} 43... bxa4 {[%clk 0:01:07.4]} 44. Rxb7 {[%clk
0:00:16]} 44... Rxd4 {[%clk 0:01:07.9]} 45. Rb6+ {[%clk 0:00:16]} 45... Ke7
{[%clk 0:01:06.7]} 46. Ra6 {[%clk 0:00:15.1]} 46... Rc4 {[%clk 0:01:03.7]} 47.
Ra5 {[%clk 0:00:15.4]} 47... d4 {[%clk 0:01:03]} 48. Kg3 {[%clk 0:00:15.3]}
48... Ke6 {[%clk 0:00:55.4]} 49. Ne1 {[%clk 0:00:14.9]} 49... Kd5 {[%clk
0:00:55.1]} 50. Ra7 {[%clk 0:00:12.1]} 50... Bc6 {[%clk 0:00:54.8]} 51. Kf2
{[%clk 0:00:11.6]} 51... Ke4 {[%clk 0:00:51.6]} 52. Re7+ {[%clk 0:00:10.9]}
52... Kd5 {[%clk 0:00:51.6]} 53. Rxh7 {[%clk 0:00:11]} 53... a3 {[%clk
0:00:46.8]} 54. Ra7 {[%clk 0:00:10.1]} 54... Ra4 {[%clk 0:00:47.2]} 55. Rg7
{[%clk 0:00:06.2]} 55... a2 {[%clk 0:00:45]} 56. Nc2 {[%clk 0:00:06.5]} 56...
Rc4 {[%clk 0:00:41.5]} 57. Na1 {[%clk 0:00:04.7]} 57... Rc1 {[%clk 0:00:41.1]}
58. Rg1 {[%clk 0:00:05.1]} 58... Rxg1 {[%clk 0:00:39.1]} 59. Kxg1 {[%clk
0:00:06]} 59... d3 {[%clk 0:00:39.9]} 60. Kf2 {[%clk 0:00:06.1]} 60... Kd4
{[%clk 0:00:40.8]} 61. h5 {[%clk 0:00:06.1]} 61... d2 {[%clk 0:00:39.4]} 62. Ke2
{[%clk 0:00:03.3]} 62... Kc3 {[%clk 0:00:39.9]} 63. h6 {[%clk 0:00:03]} 63...
Ba4 {[%clk 0:00:39.9]} 64. Kf2 {[%clk 0:00:01.5]} 64... d1=Q {[%clk 0:00:40.8]}
65. h7 {[%clk 0:00:02.4]} 65... Qd4+ {[%clk 0:00:40.3]} 0-1

[Event "*** Titled Tuesday Blitz"]
[Site "Chess.com"]
[Date "2021.02.09"]
[Round "7"]
[White "agartha01"]
[Black "erdni1993"]
[Result "1-0"]
[WhiteElo "2326"]
[BlackElo "2417"]
[TimeControl "180+1"]
[EndTime "11:19:24 PST"]
[Termination "agartha01 won by resignation"]

1. d4 {[%clk 0:03:00.9]} 1... Nf6 {[%clk 0:02:57.4]} 2. Bf4 {[%clk 0:03:00.8]}
2... e6 {[%clk 0:02:57.2]} 3. e3 {[%clk 0:03:00.4]} 3... c5 {[%clk 0:02:57.8]}
4. c3 {[%clk 0:03:00.4]} 4... h6 {[%clk 0:02:57]} 5. Nf3 {[%clk 0:02:59.9]} 5...
cxd4 {[%clk 0:02:56.9]} 6. cxd4 {[%clk 0:02:59.3]} 6... Nc6 {[%clk 0:02:57.8]}
7. Nc3 {[%clk 0:02:59.2]} 7... Bb4 {[%clk 0:02:57.2]} 8. a3 {[%clk 0:02:58.4]}
8... Bxc3+ {[%clk 0:02:54.5]} 9. bxc3 {[%clk 0:02:58.7]} 9... O-O {[%clk
0:02:54.3]} 10. c4 {[%clk 0:02:57]} 10... d5 {[%clk 0:02:53.9]} 11. Be2 {[%clk
0:02:49.8]} 11... Bd7 {[%clk 0:02:50.7]} 12. O-O {[%clk 0:02:49.2]} 12... dxc4
{[%clk 0:02:49.4]} 13. Bxc4 {[%clk 0:02:48.7]} 13... Na5 {[%clk 0:02:49.9]} 14.
Bd3 {[%clk 0:02:41.7]} 14... Bc6 {[%clk 0:02:49]} 15. Ne5 {[%clk 0:02:34.7]}
15... Bd5 {[%clk 0:02:43.2]} 16. Re1 {[%clk 0:02:26.2]} 16... Rc8 {[%clk
0:02:32.8]} 17. Rb1 {[%clk 0:02:24.9]} 17... b6 {[%clk 0:02:19.4]} 18. h3 {[%clk
0:02:15.5]} 18... Rc3 {[%clk 0:02:17.6]} 19. a4 {[%clk 0:02:08.3]} 19... Qe7
{[%clk 0:02:12.5]} 20. Rc1 {[%clk 0:01:54.3]} 20... Rfc8 {[%clk 0:02:09.1]} 21.
Rxc3 {[%clk 0:01:53.8]} 21... Rxc3 {[%clk 0:02:10]} 22. Bb1 {[%clk 0:01:51.9]}
22... Be4 {[%clk 0:01:52.1]} 23. Bxe4 {[%clk 0:01:34.9]} 23... Nxe4 {[%clk
0:01:53]} 24. d5 {[%clk 0:01:28.2]} 24... exd5 {[%clk 0:01:26.2]} 25. Qxd5
{[%clk 0:01:27.5]} 25... Nf6 {[%clk 0:01:26.6]} 26. Qd4 {[%clk 0:01:20.1]} 26...
Rc8 {[%clk 0:01:19.7]} 27. Rd1 {[%clk 0:01:15.2]} 27... Nb3 {[%clk 0:01:14.9]}
28. Qd3 {[%clk 0:00:52]} 28... Nc5 {[%clk 0:01:13.9]} 29. Qb5 {[%clk 0:00:51.8]}
29... Qe6 {[%clk 0:01:07.1]} 30. Nf3 {[%clk 0:00:36.7]} 30... Nfe4 {[%clk
0:00:49.5]} 31. Qb4 {[%clk 0:00:27.1]} 31... Qc6 {[%clk 0:00:32.5]} 32. a5
{[%clk 0:00:24]} 32... bxa5 {[%clk 0:00:29.6]} 33. Qxa5 {[%clk 0:00:21.7]} 33...
Qb6 {[%clk 0:00:19.7]} 34. Qxb6 {[%clk 0:00:17.6]} 34... axb6 {[%clk 0:00:20.6]}
35. Nd4 {[%clk 0:00:13.3]} 35... Nc3 {[%clk 0:00:18.8]} 36. Ra1 {[%clk
0:00:10.8]} 36... b5 {[%clk 0:00:17.7]} 37. Be5 {[%clk 0:00:07.8]} 37... b4
{[%clk 0:00:16.6]} 38. Nf5 {[%clk 0:00:07.4]} 38... Ne6 {[%clk 0:00:12.6]} 39.
Ne7+ {[%clk 0:00:06.9]} 39... Kh7 {[%clk 0:00:12.2]} 40. Nxc8 {[%clk 0:00:07.4]}
40... Nd5 {[%clk 0:00:10.6]} 41. Nd6 {[%clk 0:00:05.8]} 41... f6 {[%clk
0:00:10.3]} 42. Bd4 {[%clk 0:00:05.9]} 42... Nec7 {[%clk 0:00:09.7]} 43. Nc4
{[%clk 0:00:05.5]} 43... Nb5 {[%clk 0:00:09.8]} 44. Rb1 {[%clk 0:00:05.5]} 44...
Nbc7 {[%clk 0:00:08.7]} 45. Nb6 {[%clk 0:00:05]} 45... Ne7 {[%clk 0:00:06]} 46.
Rxb4 {[%clk 0:00:04.2]} 46... Ne6 {[%clk 0:00:06.9]} 47. Rc4 {[%clk 0:00:04.3]}
47... Nf5 {[%clk 0:00:06.7]} 48. Rc6 {[%clk 0:00:04.2]} 48... Nd8 {[%clk
0:00:06.8]} 49. Rc8 {[%clk 0:00:03.9]} 49... Ne6 {[%clk 0:00:07.1]} 50. g4
{[%clk 0:00:04.2]} 50... Ne7 {[%clk 0:00:07.2]} 51. Re8 {[%clk 0:00:03.9]} 51...
Nxd4 {[%clk 0:00:07.4]} 52. exd4 {[%clk 0:00:04]} 52... Nc6 {[%clk 0:00:08.1]}
53. d5 {[%clk 0:00:04.4]} 53... Nd4 {[%clk 0:00:08.4]} 54. d6 {[%clk 0:00:04.9]}
54... Nf3+ {[%clk 0:00:09.3]} 55. Kg2 {[%clk 0:00:04.9]} 55... Ne5 {[%clk
0:00:09.8]} 56. Rxe5 {[%clk 0:00:04.8]} 56... fxe5 {[%clk 0:00:10.1]} 57. d7
{[%clk 0:00:05.5]} 1-0

[Event "*** Titled Tuesday Blitz"]
[Site "Chess.com"]
[Date "2021.02.09"]
[Round "7"]
[White "TregubovP"]
[Black "JoliyRoger"]
[Result "0-1"]
[WhiteElo "2579"]
[BlackElo "2431"]
[TimeControl "180+1"]
[EndTime "11:19:25 PST"]
[Termination "JoliyRoger won by resignation"]

1. e4 {[%clk 0:03:00.9]} 1... c6 {[%clk 0:02:59.6]} 2. Nf3 {[%clk 0:02:59.9]}
2... d5 {[%clk 0:02:50.1]} 3. Nc3 {[%clk 0:02:59.8]} 3... Nf6 {[%clk 0:02:50.7]}
4. e5 {[%clk 0:02:58.8]} 4... Ne4 {[%clk 0:02:51.3]} 5. Ne2 {[%clk 0:02:59.4]}
5... Qb6 {[%clk 0:02:50.8]} 6. d4 {[%clk 0:02:57.9]} 6... e6 {[%clk 0:02:50.9]}
7. Ng3 {[%clk 0:02:57.3]} 7... Nxg3 {[%clk 0:02:50.9]} 8. fxg3 {[%clk
0:02:57.6]} 8... c5 {[%clk 0:02:51.5]} 9. c3 {[%clk 0:02:53.4]} 9... Bd7 {[%clk
0:02:51.6]} 10. Bd3 {[%clk 0:02:50.8]} 10... h6 {[%clk 0:02:50.9]} 11. O-O
{[%clk 0:02:50.7]} 11... cxd4 {[%clk 0:02:37.5]} 12. Nxd4 {[%clk 0:02:42.3]}
12... Bc5 {[%clk 0:02:22.4]} 13. Be3 {[%clk 0:02:34.8]} 13... Nc6 {[%clk
0:02:15.2]} 14. Qh5 {[%clk 0:02:03.8]} 14... Rf8 {[%clk 0:02:08.8]} 15. Rad1
{[%clk 0:01:39.8]} 15... Nxd4 {[%clk 0:02:01.3]} 16. cxd4 {[%clk 0:01:36.5]}
16... Bxd4 {[%clk 0:02:01.9]} 17. Bxd4 {[%clk 0:01:36.1]} 17... Qxd4+ {[%clk
0:02:02.5]} 18. Kh1 {[%clk 0:01:36.7]} 18... Qb4 {[%clk 0:01:22.7]} 19. a3
{[%clk 0:01:27.3]} 19... Qa4 {[%clk 0:01:19.6]} 20. Rc1 {[%clk 0:01:23.6]} 20...
Bc6 {[%clk 0:00:44.3]} 21. Bg6 {[%clk 0:01:13.7]} 21... Ke7 {[%clk 0:00:24.1]}
22. Bxf7 {[%clk 0:01:09.5]} 22... Qe4 {[%clk 0:00:20.6]} 23. Bg6 {[%clk
0:01:04.7]} 23... Rxf1+ {[%clk 0:00:18.9]} 24. Rxf1 {[%clk 0:01:03.8]} 24... Rf8
{[%clk 0:00:19.3]} 25. Rg1 {[%clk 0:00:56.8]} 25... Qe3 {[%clk 0:00:17.6]} 26.
Qh4+ {[%clk 0:00:55.4]} 26... Qg5 {[%clk 0:00:18.1]} 27. Qxg5+ {[%clk
0:00:51.6]} 27... hxg5 {[%clk 0:00:18]} 28. h4 {[%clk 0:00:51.5]} 28... gxh4
{[%clk 0:00:15.4]} 29. gxh4 {[%clk 0:00:51.8]} 29... d4 {[%clk 0:00:15.7]} 30.
Kh2 {[%clk 0:00:43.7]} 30... Rf2 {[%clk 0:00:13.9]} 31. Kg3 {[%clk 0:00:44]}
31... Rxb2 {[%clk 0:00:14.3]} 32. h5 {[%clk 0:00:37.9]} 32... Re2 {[%clk
0:00:14.2]} 33. Kh3 {[%clk 0:00:35]} 33... Rxe5 {[%clk 0:00:13.8]} 34. g4 {[%clk
0:00:33.7]} 34... Re3+ {[%clk 0:00:14.1]} 35. Kh4 {[%clk 0:00:33.7]} 35... Be4
{[%clk 0:00:13.8]} 36. Bxe4 {[%clk 0:00:31]} 36... Rxe4 {[%clk 0:00:14.3]} 37.
Rc1 {[%clk 0:00:31.7]} 37... Kd7 {[%clk 0:00:12.6]} 38. Kg5 {[%clk 0:00:31.7]}
38... d3 {[%clk 0:00:12]} 39. Rd1 {[%clk 0:00:31.3]} 39... Re3 {[%clk
0:00:11.8]} 40. Kg6 {[%clk 0:00:30.9]} 40... Rg3 {[%clk 0:00:11.4]} 41. g5
{[%clk 0:00:31.1]} 41... e5 {[%clk 0:00:12]} 42. Kf5 {[%clk 0:00:29.9]} 42...
Kd6 {[%clk 0:00:11.7]} 43. h6 {[%clk 0:00:30.4]} 43... gxh6 {[%clk 0:00:11.5]}
44. gxh6 {[%clk 0:00:30.9]} 44... Rh3 {[%clk 0:00:12.4]} 45. h7 {[%clk
0:00:25.9]} 45... Rh5+ {[%clk 0:00:08.5]} 46. Kg6 {[%clk 0:00:25.3]} 46... Rh3
{[%clk 0:00:09]} 47. Rxd3+ {[%clk 0:00:23.9]} 47... Rxd3 {[%clk 0:00:08.3]} 48.
h8=Q {[%clk 0:00:24.2]} 48... Rg3+ {[%clk 0:00:08.5]} 49. Kf5 {[%clk 0:00:24.2]}
49... Rf3+ {[%clk 0:00:09.2]} 50. Ke4 {[%clk 0:00:24.3]} 50... Rf4+ {[%clk
0:00:09]} 51. Ke3 {[%clk 0:00:24.7]} 51... Rd4 {[%clk 0:00:09.1]} 52. Qb8+
{[%clk 0:00:21.6]} 52... Kc6 {[%clk 0:00:09.1]} 53. Qxa7 {[%clk 0:00:21.7]}
53... Rd5 {[%clk 0:00:09.4]} 54. Ke4 {[%clk 0:00:21]} 54... Rb5 {[%clk
0:00:09.5]} 55. Qa4 {[%clk 0:00:20.4]} 55... Kb6 {[%clk 0:00:10.1]} 56. Qc4
{[%clk 0:00:20.3]} 56... Rc5 {[%clk 0:00:10.3]} 57. Qb4+ {[%clk 0:00:19.8]}
57... Rb5 {[%clk 0:00:10.8]} 58. Qd6+ {[%clk 0:00:19.5]} 58... Ka7 {[%clk
0:00:11.5]} 59. Kd3 {[%clk 0:00:19.2]} 59... Ra5 {[%clk 0:00:10.2]} 60. Kc4
{[%clk 0:00:19.3]} 60... Ra6 {[%clk 0:00:10.5]} 61. Kb5 {[%clk 0:00:19]} 61...
Rxd6 {[%clk 0:00:10.4]} 62. Kc5 {[%clk 0:00:19.5]} 62... Rd1 {[%clk 0:00:10.1]}
63. Kc4 {[%clk 0:00:20.1]} 63... e4 {[%clk 0:00:10.7]} 0-1

[Event "*** Titled Tuesday Blitz"]
[Site "Chess.com"]
[Date "2021.02.09"]
[Round "7"]
[White "Sjakkerntobi"]
[Black "Nathan_Filgueiras"]
[Result "1-0"]
[WhiteElo "2315"]
[BlackElo "2433"]
[TimeControl "180+1"]
[EndTime "11:19:25 PST"]
[Termination "Sjakkerntobi won by resignation"]

1. e4 {[%clk 0:03:00.9]} 1... c5 {[%clk 0:02:57.7]} 2. Nf3 {[%clk 0:03:00.7]}
2... Nc6 {[%clk 0:02:58.2]} 3. d4 {[%clk 0:03:01.2]} 3... cxd4 {[%clk
0:02:59.1]} 4. Nxd4 {[%clk 0:03:02.1]} 4... e5 {[%clk 0:02:59.5]} 5. Nb5 {[%clk
0:03:00.3]} 5... d6 {[%clk 0:02:59.6]} 6. N1c3 {[%clk 0:02:56.6]} 6... a6 {[%clk
0:02:59.8]} 7. Na3 {[%clk 0:02:56.7]} 7... b5 {[%clk 0:03:00.3]} 8. Nd5 {[%clk
0:02:56.5]} 8... Nce7 {[%clk 0:03:00.9]} 9. c4 {[%clk 0:02:55.4]} 9... Nxd5
{[%clk 0:02:49.2]} 10. exd5 {[%clk 0:02:56.3]} 10... bxc4 {[%clk 0:02:48.3]} 11.
Nxc4 {[%clk 0:02:57.2]} 11... Nf6 {[%clk 0:02:45.1]} 12. Be3 {[%clk 0:02:56.7]}
12... Rb8 {[%clk 0:02:45.3]} 13. Be2 {[%clk 0:02:48.7]} 13... Be7 {[%clk
0:02:43.4]} 14. O-O {[%clk 0:02:48.7]} 14... O-O {[%clk 0:02:43.6]} 15. Qd2
{[%clk 0:02:27.3]} 15... Bb7 {[%clk 0:02:29.7]} 16. Nb6 {[%clk 0:02:24.4]} 16...
Nd7 {[%clk 0:02:27]} 17. Nc4 {[%clk 0:02:17.4]} 17... f5 {[%clk 0:02:20]} 18. f4
{[%clk 0:02:15.7]} 18... exf4 {[%clk 0:01:42.3]} 19. Bxf4 {[%clk 0:02:12]} 19...
Nf6 {[%clk 0:01:41.2]} 20. Bf3 {[%clk 0:02:05.2]} 20... Qc7 {[%clk 0:01:31.3]}
21. Rac1 {[%clk 0:02:03.5]} 21... Nxd5 {[%clk 0:01:12.2]} 22. Bxd5+ {[%clk
0:02:02.2]} 22... Kh8 {[%clk 0:01:05.4]} 23. Bxb7 {[%clk 0:01:59.7]} 23... Qxb7
{[%clk 0:01:06.3]} 24. Nxd6 {[%clk 0:01:52.2]} 24... Qxb2 {[%clk 0:01:02.4]} 25.
Qxb2 {[%clk 0:01:43.6]} 25... Rxb2 {[%clk 0:01:03.3]} 26. Rfe1 {[%clk
0:01:38.6]} 26... Bf6 {[%clk 0:00:52.7]} 27. a4 {[%clk 0:01:29.5]} 27... h6
{[%clk 0:00:51.5]} 28. Be5 {[%clk 0:01:20.4]} 28... Ra2 {[%clk 0:00:45.6]} 29.
Nxf5 {[%clk 0:00:58.5]} 29... Rxa4 {[%clk 0:00:35.2]} 30. Bxf6 {[%clk
0:00:55.2]} 30... Rxf6 {[%clk 0:00:34.6]} 31. Ng3 {[%clk 0:00:50.6]} 31... Ra2
{[%clk 0:00:32.4]} 32. Ra1 {[%clk 0:00:48.5]} 32... Rff2 {[%clk 0:00:32.4]} 33.
Rxa2 {[%clk 0:00:48.2]} 33... Rxa2 {[%clk 0:00:33.3]} 34. h3 {[%clk 0:00:48.7]}
34... a5 {[%clk 0:00:33.2]} 35. Re8+ {[%clk 0:00:48.4]} 35... Kh7 {[%clk
0:00:32]} 36. Ra8 {[%clk 0:00:49.3]} 36... a4 {[%clk 0:00:30.5]} 37. Ne4 {[%clk
0:00:47.5]} 37... Kg6 {[%clk 0:00:29.8]} 38. Nc3 {[%clk 0:00:46.6]} 38... Ra1+
{[%clk 0:00:29.1]} 39. Kh2 {[%clk 0:00:47]} 39... a3 {[%clk 0:00:29.6]} 40. Nb5
{[%clk 0:00:47.2]} 40... a2 {[%clk 0:00:23.3]} 41. Nc3 {[%clk 0:00:47]} 41...
Rc1 {[%clk 0:00:22.3]} 42. Nxa2 {[%clk 0:00:47.2]} 42... Rc2 {[%clk 0:00:22]}
43. Nb4 {[%clk 0:00:45.9]} 43... Rb2 {[%clk 0:00:22.2]} 44. Nd3 {[%clk
0:00:45.5]} 44... Rd2 {[%clk 0:00:22.2]} 45. Nf4+ {[%clk 0:00:44.6]} 45... Kf5
{[%clk 0:00:22.8]} 46. Kg3 {[%clk 0:00:45.1]} 46... g5 {[%clk 0:00:22.3]} 47.
Ra5+ {[%clk 0:00:44.7]} 47... Ke4 {[%clk 0:00:20.3]} 48. Nh5 {[%clk 0:00:38.2]}
48... Rd3+ {[%clk 0:00:20.1]} 49. Kh2 {[%clk 0:00:38.6]} 49... Rd2 {[%clk
0:00:19.5]} 50. Ng3+ {[%clk 0:00:35.1]} 50... Kf4 {[%clk 0:00:18.6]} 51. Rf5+
{[%clk 0:00:28.9]} 51... Ke3 {[%clk 0:00:17.9]} 52. Nf1+ {[%clk 0:00:26.2]}
52... Ke4 {[%clk 0:00:18.3]} 53. Nxd2+ {[%clk 0:00:26.2]} 53... Kxf5 {[%clk
0:00:18.6]} 54. Kg3 {[%clk 0:00:27.1]} 54... h5 {[%clk 0:00:19]} 55. Kf3 {[%clk
0:00:27.5]} 55... Ke5 {[%clk 0:00:18]} 56. Ne4 {[%clk 0:00:26.2]} 56... Kf5
{[%clk 0:00:16.9]} 57. g4+ {[%clk 0:00:23.8]} 57... hxg4+ {[%clk 0:00:17.8]} 58.
hxg4+ {[%clk 0:00:24.7]} 58... Kg6 {[%clk 0:00:18.3]} 59. Ke3 {[%clk 0:00:24.7]}
59... Kh6 {[%clk 0:00:19.2]} 60. Kd4 {[%clk 0:00:25.2]} 60... Kg6 {[%clk
0:00:20.1]} 61. Ke5 {[%clk 0:00:25.5]} 61... Kh6 {[%clk 0:00:21]} 62. Kf6 {[%clk
0:00:25.6]} 62... Kh7 {[%clk 0:00:20.9]} 63. Nxg5+ {[%clk 0:00:26.2]} 63... Kg8
{[%clk 0:00:21.6]} 64. Kg6 {[%clk 0:00:26.7]} 64... Kh8 {[%clk 0:00:22.3]} 65.
Nf3 {[%clk 0:00:23.9]} 65... Kg8 {[%clk 0:00:23.2]} 66. g5 {[%clk 0:00:24.4]}
66... Kh8 {[%clk 0:00:24.1]} 67. Kh6 {[%clk 0:00:24.6]} 67... Kg8 {[%clk
0:00:25]} 68. Nh4 {[%clk 0:00:23.7]} 68... Kh8 {[%clk 0:00:25.9]} 69. g6 {[%clk
0:00:24]} 69... Kg8 {[%clk 0:00:26.1]} 70. g7 {[%clk 0:00:24]} 70... Kf7 {[%clk
0:00:26.6]} 71. Kh7 {[%clk 0:00:24.9]} 1-0